Cogmind - Beta 12 @@@ ROGUE MODE // 2023.04.25 @ 20:20:53 Player: Shadow Pussy wanter Result: Destroyed self with Grenade Launcher Performance ------------- Evolutions (0) 0 Regions Visited (2) 400 Robots Destroyed (21) 105 Value Destroyed (447) 447 Prototype IDs (0) 0 Alien Tech Used (0) 0 Bonus (0) 0 TOTAL SCORE: 952 Bonus ------- None Cogmind --------- Core Integrity 0/250 Matter 216/300 Energy 100/100 System Corruption 0% Temperature Cool (0) Movement Walking (120) Location -10/Mines Parts ------- > --- POWER (1) -------- (None) > --- PROPULSION (2) --- Carbon-fiber Leg > --- UTILITY (2) ------ Improved Heat Sink Medium Storage Unit > --- WEAPON (2) ------- Light Assault Rifle Grenade Launcher > --- INVENTORY (10) --- Ion Engine Aluminum Leg Aluminum Leg Compact Wheel Compact Wheel Improved Terrain Scanner Power Shielding Beamcaster Mining Laser Peak State ------------ > --- POWER ------------ Light Angular Momentum Engine > --- PROPULSION ------- Carbon-fiber Leg Carbon-fiber Leg > --- UTILITY ---------- Improved Heat Sink Medium Storage Unit > --- WEAPON ----------- Beamcaster Light Assault Rifle > --- INVENTORY -------- Ion Engine Aluminum Leg Aluminum Leg Compact Wheel Compact Wheel Improved Terrain Scanner Power Shielding Grenade Launcher Mining Laser [Rating: 22] Favorites ----------- Power Light Ion Engine Engine Light Ion Engine Propulsion Light Treads Treads Light Treads Leg Carbon-fiber Leg Utility Medium Storage Unit Device Improved Heat Sink Storage Medium Storage Unit Protection Power Shielding Weapon Light Assault Rifle Energy Gun Beamcaster Ballistic Gun Light Assault Rifle Launcher Grenade Launcher Special Weapon Mining Laser Build | -11 -10 -10 ------- Run | Jun Mat Min Slots Evolved . | . . . Power . | . . . Propulsion . | . . . Utility . | . . . Weapon . | . . . Parts Attached 20 | 6 4 10 Power 2 | 1 . 1 Engine 2 | 1 . 1 Core . | . . . Reactor . | . . . Propulsion 4 | 2 . 2 Treads 2 | 2 . . Leg 2 | . . 2 Wheel . | . . . Hover . | . . . Flight . | . . . Utility 6 | 1 4 1 Device 3 | . 2 1 Storage 2 | 1 1 . Processor . | . . . Hackware . | . . . Protection 1 | . 1 . Artifact . | . . . Weapon 8 | 2 . 6 Energy Gun 2 | . . 2 Energy Cannon . | . . . Ballistic Gun 3 | 2 . 1 Ballistic Cannon . | . . . Launcher 1 | . . 1 Special Weapon 2 | . . 2 Impact Weapon . | . . . Slashing Weapon . | . . . Piercing Weapon . | . . . Special Melee Weapon . | . . . Unidentified Prototypes . | . . . Parts Lost 3 | . . 3 Power 1 | . . 1 Propulsion 1 | . . 1 Utility . | . . . Weapon 1 | . . 1 Highest Loss Streak 2 | . . 2 To Critical Strikes . | . . . Average Slot Usage (%) 98 | . 97 98 Engine 13 | . 14 13 Treads 18 | . 28 12 Leg 8 | . . 15 Device 5 | . 11 . Storage 14 | . 14 14 Protection 7 | . . 13 Energy Gun 4 | . . 7 Ballistic Gun 23 | . 28 19 Naked Turns . | . . . Heaviest Build 27 | 11 17 27 Greatest Support 40 | 40 40 40 Greatest Overweight (x) 1 | . . 1 Average Overweight (x) . | . . . Largest Inventory Capacity 10 | 8 10 10 Average Capacity 9 | 7 9 10 Most Carried 10 | 7 10 10 Average Carried 8 | 4 8 9 Final Capacity 10 | 8 10 10 Final Carried 10 | 7 10 9 Class Distribution -------------------- 69% | Mutant 30% | Scavenger-Mutant Dominant Class ---------------- Mutant | -10/Materials Scavenger-Mutant | -10/Mines Resources | -11 -10 -10 ----------- Run | Jun Mat Min Matter Collected 501 | 231 143 127 Remotely . | . . . Salvage Created 712 | 25 211 476 Parts 43 | 3 17 23 Haulers Intercepted . | . . . Recyclers Shooed 1 | 1 . . Parts Field Recycled . | . . . Retrieved Matter . | . . . Parts Self-Destructed . | . . . Prevented . | . . . Kills | -11 -10 -10 ------- Run | Jun Mat Min Combat Hostiles Destroyed 15 | . 4 11 Guns 11 | . 4 7 AOE 4 | . . 4 Classes Destroyed 7 | 1 2 4 Worker 2 | . . 2 Tunneler 3 | 1 . 2 Recycler 2 | . . 2 Watcher 1 | . 1 . Swarmer 3 | . . 3 Grunt 10 | . 4 6 Assembled 2 | . . 2 Best Kill Streak 9 | 1 2 9 Combat Bots Only 6 | . 2 6 Max Kills in Single Turn 5 | 1 1 5 Gunslinging . | . . . Exploded 2 | . . 2 Melee . | . . . Uniques/NPCs Destroyed . | . . . Combat | -11 -10 -10 -------- Run | Jun Mat Min Damage Taken 1046 | . 281 765 Core 255 | . 60 195 Absorbed by Shields . | . . . Redirected to Shielding 20 | . 3 17 Core Remaining (%) 100 | 100 . . Volleys Fired 69 | 2 19 48 Largest 2 | 2 2 2 Hottest 100 | 40 40 100 Shots Fired 124 | 4 38 82 Gun 114 | 4 38 72 Cannon . | . . . Launcher 4 | . . 4 Special 6 | . . 6 Kinetic 88 | 4 38 46 Thermal 32 | . . 32 Explosive 4 | . . 4 Electromagnetic . | . . . Robot Hit Streak 14 | 3 8 14 Robot Miss Streak 2 | 1 2 2 Penetration Max . | . . . Secondary Targets 1 | . . 1 Max Gunslinging Chain 1 | . . 1 Shots Hit Robots 85 | 3 28 54 Core Hits 43 | 2 13 28 Critical Kills . | . . . Critical Parts Destroyed . | . . . Critical Strikes 1 | . . 1 Burn 1 | . . 1 Melee Attacks . | . . . Impact . | . . . Slashing . | . . . Piercing . | . . . Sneak Attacks . | . . . Combat Hostiles . | . . . Follow-up Attacks . | . . . Damage Inflicted 1578 | 35 308 1235 Guns 1073 | 35 308 730 Cannons . | . . . Explosions 505 | . . 505 Melee . | . . . Ramming . | . . . Kinetic 671 | 35 308 328 Thermal 402 | . . 402 Explosive 505 | . . 505 Electromagnetic . | . . . Impact . | . . . Slashing . | . . . Piercing . | . . . Highest Corruption . | . . . Average Corruption . | . . . Corruption Purged . | . . . Corruption Blocked . | . . . Overload Shots . | . . . Overflow Damage . | . . . Projectiles . | . . . Explosions . | . . . Melee . | . . . Knockbacks . | . . . Impact . | . . . Kinetic . | . . . Secondary . | . . . Self-Inflicted Damage 110 | . . 110 Shots 4 | . . 4 Rammed . | . . . Targets Rammed . | . . . Kicked . | . . . Crushed . | . . . Highest Temperature 324 | . 9 324 Average Temperature 106 | . 7 116 Received Heat Transfer 357 | . 162 195 Siege Activations . | . . . Robots Corrupted . | . . . Combat Hostiles . | . . . Parts Fried . | . . . Impact Corruptions . | . . . Robots Melted . | . . . Combat Hostiles . | . . . Parts Melted 3 | . . 3 Heat Transferred 740 | . . 740 Parts Sabotaged . | . . . Parts Stolen . | . . . Parts Stripped . | . . . Power Chain Reactions . | . . . Missiles Intercepted . | . . . Alert | -11 -10 -10 ------- Run | Jun Mat Min Peak Influence 143 | 5 135 143 Initial 3 | . 3 2 Average 35 | 1 65 19 Maximum Alert Level . | . . . Low Security (%) 100 | 100 100 100 Level 1 . | . . . Level 2 . | . . . Level 3 . | . . . Level 4 . | . . . Level 5 . | . . . High Security . | . . . Max Security . | . . . Squads Dispatched 1 | . 1 . Investigation . | . . . Extermination . | . . . Reinforcement 1 | . 1 . Assault . | . . . Garrison . | . . . Intercept . | . . . Searches Triggered . | . . . Construction Impeded . | . . . Haulers Reinforced . | . . . Active Scanning Responses . | . . . Cargo Convoy Interrupts . | . . . Stealth | -11 -10 -10 --------- Run | Jun Mat Min Distress Signals . | . . . Communications Jammed . | . . . Distress Signals . | . . . Times Spotted 20 | . 8 12 Peak Tracking Total 4 | . 3 4 Tactical Retreats 2 | . . 2 Traps | -11 -10 -10 ------- Run | Jun Mat Min Traps Triggered . | . . . Indirectly . | . . . Trap Hack Attempts . | . . . Triggered . | . . . Disarmed . | . . . Reprogrammed . | . . . Reused . | . . . Traps Extracted . | . . . Installed . | . . . Triggered . | . . . Machines | -11 -10 -10 ---------- Run | Jun Mat Min Machines Disabled . | . . . Max in Single Turn . | . . . Machines Repaired . | . . . Machines Sabotaged . | . . . Overloaded Fab Kills . | . . . Hacking | -11 -10 -10 --------- Run | Jun Mat Min Machines Accessed 2 | . 2 . Terminals 2 | . 2 . Fabricators . | . . . Repair Stations . | . . . Recycling Units . | . . . Scanalyzers . | . . . Garrison Access . | . . . Total Hacks 11 | . 11 . Successful 4 | . 4 . Failed 6 | . 6 . Catastrophic . | . . . Database Lockouts 1 | . 1 . Manual 11 | . 11 . Terminals 11 | . 11 . Fabricators . | . . . Repair Stations . | . . . Recycling Units . | . . . Scanalyzers . | . . . Garrison Access . | . . . Terminal Hacks 2 | . 2 . Robot Analysis 1 | . 1 . Branch Access Points 1 | . 1 . Fabricator Hacks . | . . . Repair Station Hacks . | . . . Recycling Unit Hacks . | . . . Scanalyzer . | . . . Garrison Access Hacks . | . . . Unauthorized Hacks 2 | . 2 . Terminals 2 | . 2 . Botnet 2 | . 2 . Fabricators . | . . . Repair Stations . | . . . Recycling Units . | . . . Scanalyzers . | . . . Garrison Access . | . . . Data Cores Recovered . | . . . Used . | . . . Hacking Detections 2 | . 2 . Full Trace Events . | . . . Feedback Events . | . . . Feedback Blocked . | . . . Robot Schematics Acquired . | . . . Robots Built . | . . . Authchips . | . . . Time . | . . . Total Robot Build Rating . | . . . Part Schematics Acquired . | . . . Parts Built . | . . . Authchips . | . . . Time . | . . . Total Part Build Rating . | . . . Parts Repaired . | . . . Time . | . . . Parts Recycled . | . . . Recycled Matter . | . . . Retrieved Matter . | . . . Retrieved Components . | . . . Parts Scanalyzed . | . . . Part Schematics Acquired . | . . . Parts Damaged . | . . . Bothacking | -11 -10 -10 ------------ Run | Jun Mat Min Used RIF Installer . | . . . Robots Hacked . | . . . Non-combat . | . . . Combat . | . . . Robot Hacks Applied . | . . . Relay Couplers Released . | . . . Fabnet Peak Effective % . | . . . Robots Rewired . | . . . Allies Hacked . | . . . Hacks Repelled . | . . . Allies | -11 -10 -10 -------- Run | Jun Mat Min Total Allies 1 | . . 1 Largest Group 1 | . . 1 Highest-Rated Group 31 | . . 31 Highest-Rated Ally 31 | . . 31 Total Orders . | . . . Ally Attacks 5 | . . 5 Total Damage 105 | . . 105 Kills . | . . . Allies Corrupted . | . . . Allies Melted . | . . . Intel | -11 -10 -10 ------- Run | Jun Mat Min Robot Analysis Total 1 | . 1 . Derelict Logs Recovered 1 | . . 1 Drone Launches . | . . . Drone Recoveries . | . . . Exploration | -11 -10 -10 ------------- Run | Jun Mat Min Turns Passed 1333 | 121 506 706 Spaces Moved 717 | 65 270 382 Core 5 | 5 . . Treads 488 | 60 270 158 Legs 224 | . . 224 Wheels . | . . . Hover . | . . . Flight . | . . . Fastest Speed 50 | 50 160 120 Average Speed 147 | 151 160 137 Slowest Speed 240 | 160 160 240 Overloaded Moves . | . . . Propulsion Burnouts . | . . . Robots Hopped . | . . . Cave-ins Triggered . | . . . Exploration Rate (%) 37 | 6 45 61 Regions Visited 2 Branch Regions 1 Pre-discovered Areas 1 | . . 1 Known Exits Taken 1 | . 1 . Unknown Exits Taken 1 | 1 . . Scrap Searched 1 | . . 1 Spaces Dug . | . . . Terrain Destroyed 16 | . . 16 Melee . | . . . Projectile . | . . . AOE 16 | . . 16 Terrain Rammed . | . . . Walls Destroyed . | . . . Machines Disabled . | . . . Actions | -11 -10 -10 --------- Run | Jun Mat Min Total 870 | 81 313 476 Wait 46 | 2 14 30 Move 715 | 64 269 382 Hop . | . . . Pick Up 11 | 7 3 1 Fast Attach 11 | 6 2 3 Attach 1 | . . 1 Detach 1 | . 1 . Swap 8 | . 2 6 Drop 8 | . 3 5 Fire 69 | 2 19 48 Melee . | . . . Ram . | . . . Kick . | . . . Crush . | . . . Escape Stasis . | . . . Rewire . | . . . Trap . | . . . Miscellaneous . | . . . Route ------- -11/Junkyard -10/Materials (discovered 3 exits: [*Mat] / *Min x2) -10/Mines (discovered 1 exit: [*Mat]) History --------- Turn | Location | Event 2 | -11/Junkyard | Discovered new exit (range 16) 122 | -11/Junkyard | Entered Materials 309 | -10/Materials | Build established: Mutant 380 | -10/Materials | Central database locked down 380 | -10/Materials | Identified exit to Mines 401 | -10/Materials | Discovered new exit (range 16) 628 | -10/Materials | Entered Mines 721 | -10/Mines | Learned location of Zion (-6) 756 | -10/Mines | Received a Mining Laser from a helpful Derelict 983 | -10/Mines | Excavation squad dispatched 983 | -10/Mines | A large section of the Mines collapsed 986 | -10/Mines | Core integrity fell below 50% 1019 | -10/Mines | Found a damaged Exp. Sensor Array with a note attached 1219 | -10/Mines | Build established: Scavenger-Mutant 1233 | -10/Mines | Excavation squad dispatched 1328 | -10/Mines | Discovered new exit (range 5) 1329 | -10/Mines | Core integrity fell below 20% 1334 | -10/Mines | Destroyed self with Grenade Launcher Last Messages --------------- 01322_ T-07 Excavator is excavating. 01323_ G-34 Mercenary suffers critical hit (Burn). 01324_ T-07 Excavator is excavating. 01325_ U-05 Engineer lays Concrete. 01325_ T-07 Excavator is excavating. 01326_ U-05 Engineer lays Concrete. 01328_ K-01 Serf collects debris. 01328_ Aluminum Leg melted. 01328_ G-34 Mercenary destroyed. 01328_ EXIT=FOUND 01329_ The unstable cave ceiling collapses. 01329_ Lgt. Angular Momentum Engine destroyed. 01329_ T-07 Excavator is excavating. 01330_ T-07 Excavator destroyed. 01330_ G-34 Mercenary destroyed. 01330_ T-07 Excavator destroyed. 01330_ K-01 Serf destroyed. 01330_ G-34 Mercenary destroyed. 01332_ The unstable cave ceiling collapses. 01332_ G-34 Mercenary destroyed. Map ----- +----------------------------------------------------+ | ????????????????????????????## """ #????? | | ???????????????????????????## """ ###??# | | ???????????????????????????# #### | | ???????????????????????????# ## | | ????????????????????????????# | | ??????????????????????????????# | | ???????????????????????????????# ! | | ???????????????????????????????#### =[%=#### | | ??????????????????????????????????## %*##??? | | ???????????????????????????###?????## == #???? | | ??????????????????????????## #?????#%%*%##???? | | ????????????????????????### ?????##= #????? | | ???????????????????????? #??????# =[##???? | | ?????????????????????????# #??????# #???? | | ??????????????????????????# ##?????## #???? | | ??????????????????????????# ###????# #???? | | ?????????????g##???????????# ##???##!##???? | | ????????????? ???????????# #????# #????? | | ?????????????""" ?????????## #????#%#????? | | ???????????#?""" ???????###* ###### #????? | | ???????????# """ ??##### %=%* ; ! %!! #????? | | ???????????#